bitfinex-derivatives/quotes_SOLF0:USTF0_20260227
["timestamp","ask_amount","ask_price","bid_price","bid_amount"]
[1772182351875,10.2884,87.475,87.421,11.75713237]
[1772182353076,10.2884,87.475,87.423,11.75718646]
[1772182353276,10.2874,87.483,87.423,11.75718646]
[1772182353773,10.2865,87.491,87.439,11.75104351]
[1772182354874,10.2865,87.491,87.441,10.2923]
[1772182355074,10.2865,87.491,87.442,11.75109544]
[1772182355471,8.33080561,87.52,87.399,20.5944]
[1772182355472,10.2855,87.499,87.445,11.76786084]
[1772182355670,21.57300696,87.521,87.445,11.76786084]
[1772182356978,306.8546842,87.542,87.467,11.76791673]
[1772182357378,8.33654746,87.541,87.467,11.76791673]
[1772182357876,10.283,87.521,87.468,11.75645971]
[1772182358979,10.283,87.521,87.47,11.7565101]
[1772182363176,8.33295566,87.541,87.459,11.76859405]
[1772182363378,1.98902038,87.535,87.459,11.76859405]
[1772182364979,1.98902038,87.535,87.447,11.76864531]
[1772182365876,10.2856,87.498,87.447,11.76864531]
[1772182366070,1.98902038,87.535,87.447,11.76864531]
[1772182367475,10.2868,87.488,87.447,11.76864531]
[1772182372480,10.2856,87.498,87.447,11.76864531]
[1772182373681,10.2856,87.498,87.452,11.66127369]
[1772182374684,10.2847,87.506,87.454,11.66129247]
[1772182375785,10.2847,87.506,87.455,10.2906]
[1772182376088,10.2847,87.506,87.456,11.66306504]
[1772182378490,1.98902038,87.535,87.456,11.66306504]
[1772182378491,10.2856,87.499,87.456,11.66306504]
[1772182381388,10.2864,87.492,87.456,11.66306504]
[1772182382590,8.33219671,87.534,87.456,11.66306504]
[1772182383179,8.33219671,87.533,87.456,11.66306504]
[1772182383384,8.33219671,87.532,87.456,11.66306504]
[1772182383584,8.33219671,87.531,87.456,11.66306504]
[1772182383779,10.2845,87.508,87.457,10.2903]
[1772182383991,10.2845,87.508,87.458,11.66852542]
[1772182385192,10.2845,87.508,87.462,11.67318438]
[1772182386688,10.2836,87.516,87.465,11.67320287]
[1772182387893,10.2836,87.516,87.467,10.2891]
[1772182388091,10.2836,87.516,87.468,11.67608272]
[1772182388990,10.2836,87.516,87.472,11.67610131]
[1772182389693,10.2827,87.523,87.474,11.67926335]
[1772182390991,10.2827,87.523,87.478,11.67926286]
[1772182393395,1.98896354,87.535,87.457,11.62894732]
[1772182394692,10.29800411,87.535,87.457,11.62894732]
[1772182394892,10.2848,87.505,87.457,11.62894732]
[1772182396492,10.2848,87.505,87.459,10.2902]
[1772182396792,10.2848,87.505,87.46,11.57445547]
[1772182401591,10.2856,87.499,87.46,11.57445547]
[1772182408896,10.2846,87.507,87.465,11.59043382]
[1772182410598,10.2853,87.501,87.465,11.59043382]
[1772182417802,10.2844,87.508,87.465,11.59043382]
[1772182421105,10.2853,87.501,87.465,11.59043382]
[1772182421306,8.35287471,87.521,87.453,11.5972478]
[1772182421508,8.35287471,87.52,87.453,11.5972478]
[1772182421711,8.35287471,87.519,87.453,11.5972478]
[1772182421907,8.35287471,87.518,87.453,11.5972478]
[1772182422107,8.35287471,87.517,87.453,11.5972478]
[1772182422306,8.35287471,87.516,87.453,11.5972478]
[1772182422510,8.35287471,87.515,87.453,11.5972478]
[1772182422710,8.35287471,87.514,87.453,11.5972478]
[1772182422915,10.2864,87.492,87.453,11.5972478]
[1772182427014,10.2854,87.5,87.453,11.5972478]
[1772182428912,10.2845,87.508,87.456,11.59324076]
[1772182429311,8.34981269,87.524,87.456,11.59324076]
[1772182429514,8.34981269,87.523,87.456,11.59324076]
[1772182429713,8.34981269,87.522,87.456,11.59324076]
[1772182429918,8.34981269,87.521,87.456,11.59324076]
[1772182430215,10.2853,87.501,87.456,11.59324076]
[1772182432120,8.33875819,87.529,87.458,11.58770241]
[1772182432418,8.33875819,87.528,87.458,11.58770241]
[1772182432613,8.33875819,87.527,87.458,11.58770241]
[1772182432813,8.33875819,87.526,87.458,11.58770241]
[1772182433009,1.98896354,87.535,87.458,11.58770241]
[1772182433010,8.33875819,87.525,87.458,11.58770241]
[1772182433212,1.98896354,87.535,87.458,11.58770241]
[1772182433413,8.33972923,87.534,87.458,11.58770241]
[1772182433614,8.33972923,87.533,87.458,11.58770241]
[1772182433815,8.33972923,87.532,87.458,11.58770241]
[1772182434015,10.2842,87.51,87.458,11.58770241]
[1772182435520,10.2833,87.518,87.46,10.2901]
[1772182435721,10.2833,87.518,87.461,11.59090945]
[1772182437021,10.2833,87.518,87.466,11.59091035]
[1772182437422,10.2833,87.518,87.478,11.59159513]
[1772182438224,10.2824,87.526,87.478,11.59159513]
[1772182441627,10.2834,87.518,87.478,11.59159513]
[1772182443124,10.2824,87.526,87.478,11.59159513]
[1772182443323,306.8546842,87.542,87.478,11.59159513]
[1772182444328,10.2824,87.526,87.481,11.61701986]
[1772182444924,8.32970813,87.541,87.463,11.61701986]
[1772182445123,1.98892944,87.535,87.463,11.61701986]
[1772182445426,8.32970813,87.534,87.463,11.61701986]
[1772182445625,8.32970813,87.533,87.463,11.61701986]
[1772182445825,8.32970813,87.532,87.463,11.61701986]
[1772182446018,10.284,87.512,87.469,11.62126391]
[1772182453021,10.284,87.512,87.418,20.59]
[1772182453022,10.2831,87.52,87.471,11.55350363]
[1772182455134,10.2831,87.52,87.476,11.55352539]
[1772182455831,306.8546842,87.542,87.478,11.5363575]
[1772182456334,10.2811,87.537,87.486,11.53635371]
[1772182457233,306.8546842,87.542,87.486,11.53635371]
[1772182457634,8.30601047,87.541,87.475,11.53705638]
[1772182457833,8.30601047,87.54,87.475,11.53705638]
[1772182458132,8.30601047,87.539,87.475,11.53705638]
[1772182458337,8.30601047,87.538,87.475,11.53705638]
[1772182458527,8.30601047,87.537,87.475,11.53705638]
[1772182458726,8.30601047,87.536,87.475,11.53705638]
[1772182458938,8.30601047,87.535,87.475,11.53705638]
[1772182459126,8.30601047,87.541,87.475,11.53705638]
[1772182459329,8.30601047,87.54,87.475,11.53705638]
[1772182459530,8.30601047,87.539,87.475,11.53705638]
[1772182459828,8.30601047,87.538,87.475,11.53705638]
[1772182460029,10.2829,87.522,87.475,11.53705638]
[1772182461536,10.2837,87.515,87.475,11.53705638]
[1772182463637,10.2844,87.509,87.475,11.53705638]
[1772182472138,10.2834,87.517,87.475,11.53705638]
[1772182472533,3.34305013,87.53,87.475,11.53705638]
[1772182473948,10.2826,87.524,87.478,11.52707415]
[1772182474950,10.2826,87.524,87.479,10.2878]
[1772182475142,3.34305013,87.53,87.48,11.52707029]
[1772182475345,10.2817,87.532,87.481,11.52700251]
[1772182476950,10.2817,87.532,87.482,10.2874]
[1772182477152,10.2817,87.532,87.483,11.52699869]
[1772182478955,10.2817,87.532,87.484,10.2871]
[1772182479155,10.2817,87.532,87.485,11.53710744]
[1772182485164,3.34305013,87.53,87.485,11.53710744]
[1772182486267,10.2817,87.532,87.485,11.53710744]
[1772182487361,21.12271298,87.555,87.5,3.34305013]
[1772182487362,10.2806,87.541,87.5,3.34305013]
[1772182487562,3.34305013,87.55,87.501,11.54472562]
[1772182487970,10.2804,87.542,87.501,11.54472562]
[1772182490073,13.62265013,87.55,87.501,11.54472562]
[1772182490265,13.62265013,87.55,87.503,11.53393124]
[1772182490571,10.2796,87.55,87.503,11.53393124]
[1772182490764,10.2786,87.558,87.503,11.53393124]
[1772182491367,10.2786,87.558,87.511,11.53397308]
[1772182491670,299.56919354,87.572,87.521,11.53397308]
[1772182491671,10.2774,87.568,87.521,11.53397308]
[1772182491860,299.56919354,87.572,87.521,11.53397308]
[1772182492059,3.34305013,87.59,87.531,11.53397308]
[1772182492366,10.2752,87.587,87.531,11.53397308]
[1772182493863,10.2752,87.587,87.541,11.53343418]
[1772182494971,10.2767,87.574,87.541,11.53343418]
[1772182495970,10.2755,87.584,87.541,11.53343418]
[1772182497572,3.34305013,87.58,87.541,11.53343418]
[1772182499276,10.2755,87.584,87.541,11.53343418]
[1772182499477,3.34305013,87.58,87.541,11.53343418]
[1772182500582,3.34305013,87.57,87.531,11.51915452]
[1772182501675,10.2774,87.568,87.531,11.51915452]
[1772182503277,3.34305013,87.57,87.531,11.51915452]
[1772182505280,10.2763,87.577,87.531,11.51915452]
[1772182505988,10.2754,87.586,87.531,11.51915452]
[1772182506876,10.2754,87.586,87.533,11.55127802]
[1772182508384,10.2762,87.579,87.533,11.55127802]
[1772182508580,3.34305013,87.58,87.533,11.55127802]
[1772182508783,3.34305013,87.57,87.533,11.55127802]
[1772182509083,3.34305013,87.56,87.533,11.55127802]
[1772182509283,3.34305013,87.57,87.533,11.55127802]
[1772182511188,10.2761,87.58,87.533,11.55127802]
[1772182511189,13.61915013,87.58,87.533,11.55127802]
[1772182513083,10.2761,87.58,87.533,11.55127802]
[1772182513283,13.61915013,87.58,87.533,11.55127802]
[1772182514484,10.2768,87.573,87.533,11.55127802]
[1772182516084,10.2778,87.565,87.522,11.52960802]
[1772182517489,3.33804474,87.57,87.523,10.2826]
[1772182517790,10.2767,87.574,87.531,11.534934]
[1772182520090,10.2775,87.567,87.531,11.534934]
[1772182520591,3.33804474,87.58,87.531,11.534934]
[1772182520795,1.98739035,87.615,87.534,11.5506059]
[1772182520995,3.33804474,87.59,87.534,11.5506059]
[1772182521892,10.2761,87.579,87.534,11.5506059]
[1772182522495,10.277,87.571,87.534,11.5506059]
[1772182524202,1.98739035,87.615,87.534,11.5506059]
[1772182524499,3.33804474,87.59,87.541,11.52822393]
[1772182524697,3.33804474,87.6,87.541,11.52822393]
[1772182525499,10.2742,87.596,87.549,10.2796]
[1772182525699,10.2742,87.596,87.55,11.54706601]
[1772182531000,10.275,87.589,87.55,11.54706601]
[1772182534809,10.274,87.597,87.55,11.54706601]
[1772182535710,10.274,87.597,87.551,10.2793]
[1772182535913,3.33804474,87.61,87.561,11.53110291]
[1772182536107,3.33804474,87.62,87.561,11.53110291]
[1772182536312,3.33804474,87.62,87.571,11.53110111]
[1772182537012,10.2716,87.617,87.574,11.53110111]
[1772182537216,3.33804474,87.62,87.574,11.53110111]
[1772182537817,3.33804474,87.61,87.574,11.53110111]
[1772182538218,10.2733,87.603,87.558,11.51624028]
[1772182538516,3.33804474,87.6,87.558,11.51624028]
[1772182539611,3.33804474,87.59,87.55,11.51844008]
[1772182540110,3.33804474,87.59,87.554,11.51844008]
[1772182541017,10.2738,87.599,87.554,11.51844008]
[1772182542015,3.33804474,87.59,87.554,11.51844008]
[1772182545511,3.33804474,87.58,87.554,11.51844008]
[1772182545911,3.33804474,87.57,87.543,11.55340932]
[1772182555522,3.33804474,87.58,87.543,11.55340932]
[1772182556129,3.33804474,87.59,87.544,11.51847242]
[1772182558024,10.275,87.589,87.544,11.51847242]
[1772182562230,10.2758,87.582,87.544,11.51847242]
[1772182562536,3.33804474,87.58,87.544,11.51847242]
[1772182563639,10.2752,87.587,87.545,11.51204643]
[1772182564634,3.33804474,87.58,87.545,11.51204643]
[1772182565035,13.61414474,87.58,87.545,11.51204643]
[1772182567639,10.2761,87.58,87.545,11.51204643]
[1772182569236,3.33804474,87.57,87.528,11.50307449]
[1772182569541,3.33804474,87.56,87.528,11.50307449]
[1772182570844,3.33804474,87.54,87.512,11.50306557]
[1772182571338,13.61874474,87.54,87.512,11.50306557]
[1772182571542,13.61874474,87.54,87.491,11.5046606]
[1772182572143,13.61874474,87.54,87.494,11.5046606]
[1772182573840,13.61874474,87.54,87.495,10.2859]
[1772182574045,13.61874474,87.54,87.496,11.51007192]
[1772182574835,3.33804474,87.54,87.497,10.2856]
[1772182575040,10.2797,87.549,87.498,11.51007032]
[1772182576035,10.2797,87.549,87.502,11.50777712]
[1772182576246,3.33804474,87.55,87.502,11.50777712]
[1772182576846,3.33804474,87.56,87.516,11.50777586]
[1772182577345,3.33953002,87.55,87.516,11.50777586]
[1772182578050,13.61913002,87.55,87.516,11.50777586]
[1772182580243,3.33953002,87.55,87.516,11.50777586]
[1772182581748,8.24000244,87.598,87.461,480.00723732]
[1772182581749,3.33953002,87.56,87.517,11.50630007]
[1772182582946,10.2776,87.566,87.52,11.50629817]
[1772182583854,10.2776,87.566,87.522,11.50406927]
[1772182585654,3.33953002,87.56,87.522,11.50406927]
[1772182587051,3.33953002,87.56,87.523,10.2826]
[1772182587259,3.33953002,87.56,87.524,11.50494952]
[1772182587755,10.2776,87.566,87.524,11.50494952]
[1772182589554,10.2767,87.574,87.527,11.5028093]
[1772182590656,3.33953002,87.57,87.527,11.5028093]
[1772182590859,3.33953002,87.56,87.518,11.50280797]
[1772182591553,10.2785,87.559,87.518,11.50280797]
[1772182599171,10.2776,87.567,87.527,11.50940208]
[1772182603771,3.33953002,87.59,87.531,11.53449582]
[1772182604376,3.33953002,87.59,87.536,11.53449524]
[1772182604573,3.33953002,87.6,87.541,11.53449524]
[1772182605173,10.2745,87.593,87.549,11.53449524]
[1772182605376,10.2745,87.593,87.551,11.54132946]
[1772182608185,10.2745,87.593,87.553,11.54444236]
[1772182610782,3.33953002,87.6,87.553,11.54444236]
[1772182611184,10.2747,87.591,87.553,11.54444236]
[1772182611985,10.2753,87.586,87.553,11.54444236]
[1772182620790,10.2761,87.579,87.553,11.54444236]
[1772182621090,3.33953002,87.59,87.553,11.54444236]
[1772182621391,3.33953002,87.6,87.553,11.54444236]
[1772182621790,10.2752,87.587,87.553,11.54444236]
[1772182621987,3.33953002,87.58,87.531,11.4973666]
[1772182622984,10.2761,87.579,87.531,11.4973666]
[1772182623186,3.33953002,87.58,87.531,11.4973666]
[1772182624090,10.277,87.571,87.531,11.4973666]
[1772182624492,3.33953002,87.57,87.531,11.4973666]
[1772182625687,8.2431927,87.604,87.535,11.49198409]
[1772182625894,3.33953002,87.58,87.535,11.49198409]
[1772182626897,10.2765,87.576,87.535,11.49198409]
[1772182627295,3.33953002,87.61,87.55,3.33953002]
[1772182627499,3.33953002,87.6,87.551,11.48784869]
[1772182628898,10.2742,87.596,87.551,11.48784869]
[1772182630695,3.33953002,87.6,87.551,11.48784869]
[1772182630997,3.33953002,87.61,87.561,11.49012488]
[1772182631897,10.2726,87.609,87.561,11.49012488]
[1772182636402,3.33953002,87.59,87.547,11.49366562]
[1772182636600,3.33953002,87.58,87.547,11.49366562]
[1772182637002,3.33953002,87.6,87.547,11.49366562]
[1772182637999,10.2742,87.596,87.547,11.49366562]
[1772182639196,10.2762,87.578,87.534,11.49724525]
[1772182643507,3.33819661,87.57,87.534,11.49724525]
[1772182644806,10.2762,87.578,87.534,11.49724525]
[1772182645609,10.2772,87.57,87.534,11.49724525]
[1772182651608,13.61539661,87.57,87.534,11.49724525]
[1772182659518,10.2772,87.57,87.534,11.49724525]
[1772182662515,10.2763,87.578,87.534,11.49724525]
[1772182663021,3.33819661,87.58,87.534,11.49724525]
[1772182663321,10.2777,87.565,87.534,11.49724525]
[1772182667921,10.2786,87.558,87.534,11.49724525]
[1772182668617,10.2786,87.558,87.513,11.55808243]
[1772182669019,10.2794,87.551,87.513,11.55808243]
[1772182675219,13.61649661,87.56,87.513,11.55808243]
[1772182675825,13.61649661,87.56,87.514,10.2837]
[1772182676226,10.2775,87.567,87.515,11.53602611]
[1772182678027,10.2775,87.567,87.518,11.54201879]
[1772182678932,10.2775,87.567,87.522,11.5420183]
[1772182680341,10.2783,87.561,87.522,11.5420183]
[1772182681141,3.33819661,87.55,87.502,11.5426239]
[1772182681440,3.33819661,87.55,87.504,11.53635332]
[1772182683042,3.33819661,87.55,87.505,11.53635252]
[1772182684044,10.2797,87.549,87.505,11.53635252]
[1772182685545,10.2805,87.542,87.505,11.53635252]
[1772182685747,3.33819661,87.54,87.505,11.53635252]
[1772182686247,10.2808,87.539,87.505,11.53635252]
[1772182686849,3.33819661,87.54,87.505,11.53635252]
[1772182687749,3.33819661,87.55,87.505,11.53635252]
[1772182688542,10.2796,87.549,87.505,11.53635252]
[1772182691248,10.2805,87.542,87.505,11.53635252]
[1772182697355,13.61779661,87.55,87.505,11.53635252]
[1772182697555,20.5512,87.584,87.508,11.52300004]
[1772182697556,3.33819661,87.56,87.508,11.52300004]
[1772182698852,10.2786,87.558,87.511,10.284]
[1772182699056,10.2786,87.558,87.512,11.52299972]
[1772182699556,10.2794,87.551,87.512,11.52299972]
[1772182702652,10.2785,87.559,87.512,11.52299972]
[1772182703850,10.2785,87.559,87.513,10.2838]
[1772182704356,10.2785,87.559,87.514,11.51514274]
[1772182705853,10.2794,87.551,87.514,11.51514274]
[1772182706054,3.33989192,87.55,87.493,11.53765415]
[1772182706856,10.2803,87.544,87.495,10.2859]
[1772182707255,10.2803,87.544,87.496,11.53765398]
[1772182709056,10.2803,87.544,87.5,11.52166609]
[1772182709262,3.33989192,87.57,87.511,11.52128279]
[1772182709658,3.33989192,87.56,87.511,11.52128279]
[1772182710258,10.2798,87.547,87.511,11.52128279]
[1772182712059,10.2788,87.556,87.511,11.52128279]
[1772182712662,3.33989192,87.56,87.513,11.5283906]
[1772182713663,10.2786,87.558,87.513,11.5283906]
[1772182717365,10.2776,87.566,87.517,11.52956782]
[1772182718071,3.33989192,87.56,87.517,11.52956782]
[1772182719572,10.2787,87.557,87.517,11.52956782]
[1772182722567,10.2794,87.551,87.517,11.52956782]
[1772182724169,10.2786,87.558,87.517,11.52956782]
[1772182727466,3.33989192,87.57,87.519,10.2831]
[1772182727772,10.2776,87.567,87.521,11.54299118]
[1772182728874,10.2776,87.567,87.524,11.54299128]
[1772182732664,10.2784,87.559,87.524,11.54299128]
[1772182738171,10.2793,87.552,87.515,11.53469428]
[1772182743882,3.33989192,87.55,87.515,11.53469428]
[1772182744177,3.33989192,87.56,87.509,11.53293572]
[1772182744487,3.33989192,87.58,87.521,11.53293565]
[1772182745284,10.2775,87.567,87.521,11.53293565]
[1772182747382,13.61819192,87.56,87.521,11.53293565]
[1772182750377,10.2792,87.553,87.521,11.53293565]
[1772182761599,3.33971883,87.58,87.521,11.53293565]
[1772182761799,8.29973617,87.579,87.521,11.53293565]
[1772182761999,3.33971883,87.57,87.521,11.53293565]
[1772182762801,3.33971883,87.56,87.521,11.53293565]
[1772182763902,10.2792,87.553,87.521,11.53293565]
[1772182764602,10.2801,87.546,87.521,11.53293565]
[1772182767904,10.2791,87.554,87.521,11.53293565]
[1772182768600,10.278,87.564,87.521,11.53293565]
[1772182777809,3.33971883,87.57,87.523,11.55097507]
[1772182779004,10.2774,87.568,87.523,11.55097507]
[1772182781313,10.2782,87.562,87.523,11.55097507]
[1772182787608,10.2772,87.57,87.525,10.2824]
[1772182787807,10.2772,87.57,87.52,3.33971883]
[1772182787808,10.2772,87.57,87.526,11.56620435]
[1772182789016,10.2772,87.57,87.528,11.56620443]
[1772182790816,10.278,87.564,87.528,11.56620443]
[1772182792210,10.2787,87.557,87.528,11.56620443]
[1772182792616,3.33971883,87.56,87.508,11.53053592]
[1772182793411,3.33971883,87.56,87.51,11.53512566]
[1772182794223,3.33971883,87.56,87.511,11.53512566]
[1772182794721,10.2786,87.558,87.514,11.53512591]
[1772182795618,10.2794,87.551,87.514,11.53512591]
[1772182800223,10.2776,87.567,87.518,11.53341928]
[1772182800525,3.33849266,87.57,87.521,11.5334196]
[1772182801025,3.33849266,87.56,87.521,11.5334196]
[1772182801821,10.2793,87.552,87.511,11.53276577]
[1772182802025,3.33849266,87.55,87.511,11.53276577]
[1772182802728,10.2805,87.541,87.511,11.53276577]
[1772182805636,20.5511,87.584,87.511,11.53276577]
[1772182805637,10.2814,87.534,87.511,11.53276577]
[1772182806435,10.2804,87.542,87.511,11.53276577]
[1772182807436,10.2813,87.535,87.511,11.53276577]
[1772182807639,3.33849266,87.54,87.488,21.25748492]
[1772182808732,3.33849266,87.54,87.484,21.25748492]
[1772182808933,3.33849266,87.54,87.442,1.98769117]
[1772182808934,3.33849266,87.53,87.477,31.54548492]
[1772182809136,3.33849266,87.53,87.477,10.288]
[1772182809334,10.2822,87.528,87.477,10.288]
[1772182809534,10.2822,87.528,87.481,5.84544409]
[1772182810140,10.2822,87.528,87.484,5.84544409]
[1772182811946,10.2822,87.528,87.486,5.89038497]
[1772182815247,10.2812,87.536,87.491,5.87636276]
[1772182816446,8.29493316,87.568,87.491,5.87636276]
[1772182816447,10.282,87.529,87.491,5.87636276]
[1772182819839,10.2828,87.522,87.491,5.87636276]
[1772182821351,3.34174014,87.53,87.491,5.87636276]
[1772182822951,10.2821,87.528,87.491,5.87636276]
[1772182825440,10.2821,87.528,87.449,28.47595985]
[1772182825441,3.34174014,87.52,87.472,5.80271149]
[1772182825842,10.58397435,87.574,87.472,5.80271149]
[1772182825843,20.5562,87.563,87.472,5.80271149]
[1772182826042,3.34174014,87.52,87.472,5.80271149]
[1772182826856,3.34174014,87.51,87.472,5.80271149]
[1772182828948,10.2852,87.501,87.472,5.80271149]
[1772182829250,3.34174014,87.51,87.472,5.80271149]
[1772182829655,10.2843,87.51,87.472,5.80271149]
[1772182829851,8.29493316,87.555,87.472,5.80271149]
[1772182830057,159.7996,87.608,87.493,5.81837121]
[1772182830058,3.34174014,87.54,87.493,5.81837121]
[1772182830953,3.34174014,87.57,87.511,5.81837232]
[1772182831251,3.34174014,87.57,87.521,5.83007881]
[1772182831456,10.2765,87.576,87.531,5.83007881]
[1772182832756,10.2776,87.567,87.531,5.83007881]
[1772182834552,10.2785,87.559,87.519,5.75142721]
[1772182842560,10.2774,87.568,87.519,5.75142721]
[1772182842765,10.2774,87.568,87.521,5.722001]
[1772182844360,10.2765,87.576,87.531,5.71970737]
[1772182851665,10.2765,87.576,87.541,5.69447991]
[1772182851968,10.2755,87.584,87.541,5.69447991]
[1772182852169,10.2755,87.584,87.54,3.34174014]
[1772182852170,10.2755,87.584,87.551,5.69447991]
[1772182854862,10.2765,87.576,87.54,5.69852238]
[1772182855064,3.34174014,87.59,87.54,5.69852238]
[1772182855372,3.34174014,87.58,87.525,5.69852238]
[1772182855566,10.2776,87.567,87.525,5.69852238]
[1772182855761,10.2776,87.567,87.531,5.6900654]
[1772182859675,10.2776,87.567,87.52,8.95359078]
[1772182859875,3.34174014,87.57,87.52,5.61185064]
[1772182861174,10.2789,87.555,87.52,5.61185064]
[1772182867783,3.34174014,87.54,87.488,5.61500364]
[1772182868573,10.2822,87.527,87.488,5.61500364]
[1772182869784,3.34174014,87.53,87.488,5.61500364]
[1772182869976,10.2812,87.536,87.488,5.61500364]
[1772182872380,20.5516,87.582,87.501,5.61032593]
[1772182872381,3.34174014,87.55,87.501,5.61032593]
[1772182872585,3.34174014,87.56,87.501,5.61032593]
[1772182873088,3.34174014,87.55,87.501,5.61032593]
[1772182873583,10.2809,87.539,87.501,5.61032593]
[1772182877989,3.34174014,87.53,87.501,5.61032593]
[1772182879593,10.2809,87.538,87.501,5.61032593]
[1772182882094,3.34124252,87.55,87.502,5.65344333]
[1772182882987,10.2797,87.549,87.502,5.65344333]
[1772182883591,10.2797,87.549,87.504,5.66115825]
[1772182884996,10.2805,87.542,87.504,5.66115825]
[1772182885191,3.34124252,87.53,87.481,5.66110328]
[1772182885392,3.34124252,87.53,87.483,5.66110328]
[1772182886897,10.2821,87.528,87.483,5.66110328]
[1772182887299,3.34124252,87.52,87.483,5.66110328]
[1772182888695,10.2833,87.518,87.466,5.74881571]
[1772182889091,3.34124252,87.52,87.47,3.34124252]
[1772182889296,3.34124252,87.53,87.484,5.74881571]
[1772182889701,3.34124252,87.52,87.484,5.74881571]
[1772182892998,3.34124252,87.53,87.484,5.74881571]
[1772182893496,10.2806,87.541,87.493,5.77887271]
[1772182893701,31.18394068,87.583,87.493,5.77887271]
[1772182893702,3.34124252,87.55,87.493,5.77887271]
[1772182894999,3.34124252,87.54,87.495,5.77886078]
[1772182896203,20.5513,87.583,87.504,5.77785924]
[1772182896399,3.34124252,87.55,87.504,5.77785924]
[1772182896605,3.34124252,87.54,87.49,5.77784735]
[1772182897105,3.34124252,87.54,87.48,3.34124252]
[1772182897106,3.34124252,87.54,87.493,5.77784735]
[1772182897703,10.2801,87.545,87.495,5.77637083]
[1772182898912,10.2801,87.545,87.498,5.77635881]
[1772182903013,3.34124252,87.55,87.49,3.34124252]
[1772182903014,3.34124252,87.55,87.5,5.71443649]
[1772182903417,10.2796,87.549,87.503,5.71393596]
[1772182906624,3.34124252,87.55,87.503,5.71393596]
[1772182906625,3.34124252,87.54,87.503,5.71393596]
[1772182907324,20.5513,87.583,87.503,5.71393596]
[1772182907325,3.34124252,87.55,87.503,5.71393596]
[1772182907930,10.2807,87.541,87.503,5.71393596]
[1772182909030,10.2796,87.549,87.503,5.71393596]
[1772182913424,10.63264068,87.585,87.503,5.71393596]
[1772182913425,10.2785,87.559,87.503,5.71393596]
[1772182913724,3.34124252,87.59,87.531,5.70865277]
[1772182914227,10.2755,87.585,87.535,5.70865277]
[1772182914428,3.34124252,87.6,87.541,5.70862517]
[1772182914730,3.34124252,87.6,87.491,34.27]
[1772182914731,10.2735,87.602,87.561,5.70862517]
[1772182916929,3.34124252,87.64,87.581,5.71176809]
[1772182917132,3.34124252,87.64,87.591,5.71176809]
[1772182917524,3.34124252,87.63,87.591,5.71176809]
[1772182917720,3.34124252,87.63,87.571,5.70667021]
[1772182918431,10.2706,87.626,87.573,5.70664514]
[1772182918725,3.34124252,87.63,87.581,5.70664514]
[1772182918932,3.34124252,87.61,87.569,5.70664514]
[1772182919132,3.34124252,87.59,87.538,5.70664514]
[1772182919329,3.34124252,87.59,87.541,5.69676369]
[1772182920131,10.2749,87.589,87.541,5.69676369]
[1772182921326,10.2739,87.598,87.551,5.69673674]
[1772182921529,3.34124252,87.61,87.477,160.036]
[1772182921530,3.34124252,87.61,87.561,5.65469514]
[1772182921827,3.34124252,87.62,87.571,5.65469514]
[1772182922831,10.2728,87.608,87.571,5.65469514]
[1772182923629,10.2717,87.617,87.581,5.66096973]
[1772182924035,3.34124252,87.63,87.581,5.66096973]
[1772182924329,8.27694915,87.657,87.56,10.2783]
[1772182924330,10.2726,87.609,87.561,5.66096973]
[1772182924735,10.2736,87.601,87.561,5.66096973]
[1772182926530,10.2745,87.593,87.561,5.66096973]
[1772182926727,10.2745,87.593,87.55,3.34124252]
[1772182927037,3.34124252,87.59,87.541,5.64385222]
[1772182927828,10.2753,87.586,87.541,5.64385222]
[1772182929227,10.2763,87.578,87.54,3.34124252]
[1772182929430,10.2763,87.578,87.53,8.98752448]
[1772182929836,10.2763,87.578,87.531,5.64628196]
[1772182930331,3.34124252,87.6,87.541,5.6462555]
[1772182930535,3.34124252,87.6,87.551,5.6462555]
[1772182932033,10.274,87.598,87.551,5.6462555]
[1772182932533,3.34124252,87.58,87.537,5.62300422]
[1772182933739,3.34124252,87.57,87.524,5.61777158]
[1772182933932,5.13786782,87.619,87.524,5.61777158]
[1772182934129,3.34124252,87.56,87.524,5.61777158]
[1772182934728,3.34124252,87.56,87.511,5.61773332]
[1772182938032,10.2763,87.577,87.52,3.34124252]
[1772182938231,10.2763,87.577,87.521,5.60635163]
[1772182938636,3.34124252,87.58,87.523,5.60631396]
[1772182940037,3.34124252,87.58,87.528,5.61392016]
[1772182940636,3.34124252,87.57,87.528,5.61392016]
[1772182942639,3.34124252,87.56,87.528,5.61392016]
[1772182943250,3.33866596,87.57,87.528,5.61392016]
[1772182946354,3.33866596,87.57,87.53,5.58603992]
[1772182947751,3.33866596,87.58,87.53,5.58603992]
[1772182948753,10.2762,87.578,87.532,5.59423775]